[Event "EYCC Open-U18 2019"]
[Site "Bratislava"]
[Date "2019.08.05"]
[Round "4.28"]
[White "Anghelus, Alin-Gabriel"]
[Black "Tisaj, Domen"]
[Result "1-0"]
[ECO "A80"]
[WhiteElo "2107"]
[BlackElo "2232"]
[Annotator "NA"]
[PlyCount "83"]
[EventDate "2019.08.02"]
[EventType "swiss"]
[EventCountry "SVK"]
[SourceTitle "playchess.com"]
[Source "ChessBase"]
[SourceQuality "1"]
[TimeControl "40/5400+30:1800+30"]

1. d4 {[%emt 0:00:06]} f5 {[%emt 0:00:02]} 2. Nc3 {[%emt 0:00:31]} d5 {[%emt 0:00:12]} 3. Bf4 {[%emt 0:00:45]} a6 {[%emt 0:00:53]} 4. Nf3 {[%emt 0:00:42]} Nf6 {[%emt 0:00:21]} 5. e3 {[%emt 0:00:19]} e6 {[%emt 0:00:24]} 6. Be2 {[%emt 0:01:20]} c5 {[%emt 0:01:24]} 7. O-O {[%emt 0:01:00]} Nc6 {[%emt 0:03:40]} 8. Na4 {[%emt 0:02:29]} c4 {[%emt 0:11:09]} 9. b3 {[%emt 0:00:42]} b5 {[%emt 0:01:04]} 10. Nc5 {[%emt 0:00:23]} Bd6 {[%emt 0:00:24]} 11. a4 {[%emt 0:01:47]} Rb8 {[%emt 0:00:20]} 12. c3 {[%emt 0:08:11]} Ne4 {[%emt 0:04:11]} 13. Nxe4 {[%emt 0:03:08]} fxe4 {[%emt 0:00:57]} 14. Ne5 {[%emt 0:01:45]} Nxe5 {[%emt 0:03:37]} 15. Bxe5 {[%emt 0:01:32]} Bxe5 {[%emt 0:01:58]} 16. dxe5 {[%emt 0:00:06]} Qc7 {[%emt 0:00:10]} 17. axb5 {[%emt 0:01:08]} axb5 {[%emt 0:03:18]} 18. Qd4 {[%emt 0:00:37]} O-O {[%emt 0:00:33]} 19. Ra7 {[%emt 0:10:26]} Rb7 {[%emt 0:01:14]} 20. Rxb7 {[%emt 0:00:57]} Bxb7 {[%emt 0:01:17]} 21. bxc4 {[%emt 0:03:26]} dxc4 {[%emt 0:10:36]} 22. Bg4 {[%emt 0:00:14]} Bd5 {[%emt 0:01:40]} 23. f3 {[%emt 0:01:15]} Qf7 {[%emt 0:08:39]} 24. f4 {[%emt 0:02:26]} h5 {[%emt 0:17:31]} 25. Bh3 {[%emt 0:00:31]} g5 {[%emt 0:02:01]} 26. g3 {[%emt 0:06:13]} g4 {[%emt 0:00:21]} 27. Bg2 {[%emt 0:00:05]} Qb7 {[%emt 0:00:25]} 28. Rb1 {[%emt 0:01:29]} Rc8 {[%emt 0:01:36]} 29. Rb4 {[%emt 0:06:51]} Kf7 {[%emt 0:03:44]} 30. h3 {[%emt 0:02:53]} Kg6 {[%emt 0:00:52]} 31. hxg4 {[%emt 0:02:17]} hxg4 {[%emt 0:00:17]} 32. Qd1 {[%emt 0:00:52]} Kf5 {[%emt 0:00:29]} 33. Rb2 {[%emt 0:00:31]} Qb6 {[%emt 0:03:22]} 34. Kf2 {[%emt 0:00:17]} Rh8 {[%emt 0:01:12]} 35. Rd2 {[%emt 0:01:21]} Qc6 {[%emt 0:01:53]} 36. Qb1 {[%emt 0:01:26]} Rc8 {[%emt 0:06:52]} 37. Qh1 {[%emt 0:00:24]} Qe8 {[%emt 0:01:36]} 38. Qh4 {[%emt 0:00:43]} Qg6 {[%emt 0:00:10]} 39. Bh3 {[%emt 0:00:21]} Rf8 {[%emt 0:03:26]} 40. Bxg4+ {[%emt 0:00:00]} Qxg4 {[%emt 0:00:00]} 41. Qh7+ {[%emt 0:01:18]} Qg6 {[%emt 0:00:11]} 42. g4+ {[%emt 0:00:05]} 1-0

[Event "EYCC Open-U18 2019"]
[Site "Bratislava"]
[Date "2019.08.05"]
[Round "4.30"]
[White "Martinez Fernandez, Adrian"]
[Black "Toquero Gracia, Pau"]
[Result "1-0"]
[ECO "B90"]
[WhiteElo "2311"]
[BlackElo "2080"]
[Annotator "NA"]
[PlyCount "103"]
[EventDate "2019.08.02"]
[EventType "swiss"]
[EventCountry "SVK"]
[SourceTitle "playchess.com"]
[Source "ChessBase"]
[SourceQuality "1"]
[TimeControl "40/5400+30:1800+30"]

1. e4 {[%emt 0:00:00]} c5 {[%emt 0:00:00]} 2. Nf3 {[%emt 0:00:00]} d6 {[%emt 0:00:00]} 3. d4 {[%emt 0:00:00]} cxd4 {[%emt 0:00:00]} 4. Nxd4 {[%emt 0:00:00]} Nf6 {[%emt 0:00:06]} 5. Nc3 {[%emt 0:00:03]} a6 {[%emt 0:00:12]} 6. Be3 {[%emt 0:00:08]} e6 {[%emt 0:00:16]} 7. f3 {[%emt 0:00:08]} b5 {[%emt 0:00:16]} 8. Qd2 {[%emt 0:00:19]} Nbd7 {[%emt 0:00:38]} 9. O-O-O {[%emt 0:00:15]} Bb7 {[%emt 0:00:15]} 10. Kb1 {[%emt 0:00:17]} Be7 {[%emt 0:01:35]} 11. g4 {[%emt 0:06:03]} Nb6 {[%emt 0:00:30]} 12. Bd3 {[%emt 0:03:29]} Nfd7 {[%emt 0:02:19]} 13. g5 {[%emt 0:11:11]} Ne5 {[%emt 0:06:03]} 14. f4 {[%emt 0:06:38]} Nec4 {[%emt 0:05:46]} 15. Qf2 {[%emt 0:01:05]} Nxe3 {[%emt 0:10:24]} 16. Qxe3 {[%emt 0:00:07]} b4 {[%emt 0:01:51]} 17. Nce2 {[%emt 0:00:12]} d5 {[%emt 0:00:13]} 18. e5 {[%emt 0:00:54]} g6 {[%emt 0:00:30]} 19. h4 {[%emt 0:01:29]} Qc7 {[%emt 0:00:15]} 20. h5 {[%emt 0:01:41]} O-O-O {[%emt 0:00:27]} 21. Qh3 {[%emt 0:09:06]} Rhg8 {[%emt 0:01:37]} 22. hxg6 {[%emt 0:13:19]} hxg6 {[%emt 0:00:28]} 23. Nxe6 {[%emt 0:00:54]} fxe6 {[%emt 0:00:09]} 24. Qxe6+ {[%emt 0:00:02]} Kb8 {[%emt 0:00:08]} 25. Rh7 {[%emt 0:00:12]} Rde8 {[%emt 0:08:45]} 26. Rxe7 {[%emt 0:04:00]} Qxe7 {[%emt 0:02:15]} 27. Qxb6 {[%emt 0:00:07]} Rc8 {[%emt 0:03:48]} 28. Bxa6 {[%emt 0:03:23]} Rc6 {[%emt 0:00:48]} 29. Qxb7+ {[%emt 0:00:10]} Qxb7 {[%emt 0:00:04]} 30. Bxb7 {[%emt 0:00:04]} Kxb7 {[%emt 0:00:04]} 31. Rxd5 {[%emt 0:00:34]} Rc4 {[%emt 0:00:48]} 32. Kc1 {[%emt 0:07:10]} Rgc8 {[%emt 0:09:14]} 33. Rd7+ {[%emt 0:01:50]} R8c7 {[%emt 0:01:35]} 34. Rxc7+ {[%emt 0:00:09]} Kxc7 {[%emt 0:00:01]} 35. Kd2 {[%emt 0:02:25]} Rc5 {[%emt 0:00:37]} 36. Nc1 {[%emt 0:09:28]} Ra5 {[%emt 0:04:45]} 37. Nd3 {[%emt 0:00:15]} Rxa2 {[%emt 0:00:35]} 38. b3 {[%emt 0:00:01]} Ra1 {[%emt 0:00:46]} 39. Nxb4 {[%emt 0:00:03]} Rh1 {[%emt 0:00:14]} 40. c4 {[%emt 0:00:00]} Rb1 {[%emt 0:00:00]} 41. Kc2 {[%emt 0:01:51]} Rh1 {[%emt 0:01:40]} 42. Nd3 {[%emt 0:00:06]} Kc6 {[%emt 0:01:51]} 43. Kc3 {[%emt 0:00:02]} Rh8 {[%emt 0:00:18]} 44. b4 {[%emt 0:00:28]} Rd8 {[%emt 0:00:04]} 45. Nc5 {[%emt 0:02:40]} Rf8 {[%emt 0:00:25]} 46. Ne6 {[%emt 0:00:40]} Re8 {[%emt 0:00:29]} 47. Nd4+ {[%emt 0:00:09]} Kd7 {[%emt 0:00:14]} 48. Kd3 {[%emt 0:00:24]} Rf8 {[%emt 0:00:14]} 49. Ke4 {[%emt 0:00:20]} Rb8 {[%emt 0:00:05]} 50. b5 {[%emt 0:00:19]} Rc8 {[%emt 0:00:36]} 51. Kd5 {[%emt 0:00:05]} Rf8 {[%emt 0:00:22]} 52. Ne6 {[%emt 0:01:42]} 1-0

[Event "EYCC Open-U18 2019"]
[Site "Bratislava"]
[Date "2019.08.05"]
[Round "4.31"]
[White "Pektas, Yigit"]
[Black "Jakab, Bela"]
[Result "1/2-1/2"]
[ECO "E06"]
[WhiteElo "2111"]
[BlackElo "2278"]
[Annotator "NA"]
[PlyCount "96"]
[EventDate "2019.08.02"]
[EventType "swiss"]
[EventCountry "SVK"]
[SourceTitle "playchess.com"]
[Source "ChessBase"]
[SourceQuality "1"]
[TimeControl "40/5400+30:1800+30"]

1. d4 {[%emt 0:00:00]} e6 {[%emt 0:00:04]} 2. c4 {[%emt 0:00:00]} d5 {[%emt 0:00:07]} 3. Nf3 {[%emt 0:00:00]} Nf6 {[%emt 0:00:05]} 4. g3 {[%emt 0:00:00]} Be7 {[%emt 0:00:05]} 5. Bg2 {[%emt 0:00:00]} O-O {[%emt 0:00:05]} 6. O-O {[%emt 0:00:00]} dxc4 {[%emt 0:00:03]} 7. Qc2 {[%emt 0:00:04]} b5 {[%emt 0:00:07]} 8. a4 {[%emt 0:00:05]} b4 {[%emt 0:00:04]} 9. Nfd2 {[%emt 0:00:03]} c6 {[%emt 0:01:25]} 10. Nxc4 {[%emt 0:00:28]} Qxd4 {[%emt 0:04:49]} 11. Rd1 {[%emt 0:00:04]} Qc5 {[%emt 0:04:00]} 12. Be3 {[%emt 0:00:06]} Qf5 {[%emt 0:02:29]} 13. Qxf5 {[%emt 0:02:45]} exf5 {[%emt 0:00:06]} 14. Na5 {[%emt 0:08:10]} Be6 {[%emt 0:12:08]} 15. Bxc6 {[%emt 0:05:04]} Nxc6 {[%emt 0:02:55]} 16. Nxc6 {[%emt 0:00:08]} Rfe8 {[%emt 0:00:05]} 17. Nd2 {[%emt 0:14:29]} Ng4 {[%emt 0:17:23]} 18. Bd4 {[%emt 0:05:29]} Bf6 {[%emt 0:01:57]} 19. Bxf6 {[%emt 0:03:38]} Nxf6 {[%emt 0:00:22]} 20. Nxb4 {[%emt 0:08:11]} Rab8 {[%emt 0:00:29]} 21. Nd3 {[%emt 0:00:15]} Bd5 {[%emt 0:01:27]} 22. Kf1 {[%emt 0:08:56]} h5 {[%emt 0:07:13]} 23. Rac1 {[%emt 0:05:04]} Re7 {[%emt 0:02:44]} 24. Rc5 {[%emt 0:02:57]} g6 {[%emt 0:02:34]} 25. Rdc1 {[%emt 0:02:42]} Be4 {[%emt 0:05:26]} 26. Rc7 {[%emt 0:09:25]} Rxc7 {[%emt 0:01:32]} 27. Rxc7 {[%emt 0:00:08]} Bxd3 {[%emt 0:00:10]} 28. exd3 {[%emt 0:00:05]} Rxb2 {[%emt 0:00:06]} 29. Nc4 {[%emt 0:04:18]} Ra2 {[%emt 0:00:57]} 30. Rxa7 {[%emt 0:00:04]} Ng4 {[%emt 0:00:09]} 31. a5 {[%emt 0:00:33]} h4 {[%emt 0:06:48]} 32. gxh4 {[%emt 0:00:43]} f4 {[%emt 0:00:33]} 33. Ke1 {[%emt 0:02:38]} Nxf2 {[%emt 0:01:36]} 34. Rd7 {[%emt 0:03:40]} Nh3 {[%emt 0:04:29]} 35. Ne5 {[%emt 0:05:58]} Rxa5 {[%emt 0:06:08]} 36. Nxf7 {[%emt 0:00:49]} Rh5 {[%emt 0:07:03]} 37. Ng5 {[%emt 0:00:44]} Rxh4 {[%emt 0:03:38]} 38. Ne6 {[%emt 0:08:38]} Rg4 {[%emt 0:03:38]} 39. Rg7+ {[%emt 0:00:55]} Kh8 {[%emt 0:00:05]} 40. Rf7 {[%emt 0:00:00]} Rg2 {[%emt 0:00:00]} 41. d4 {[%emt 0:04:18]} Rxh2 {[%emt 0:07:05]} 42. Rf8+ {[%emt 0:06:01]} Kh7 {[%emt 0:00:05]} 43. d5 {[%emt 0:01:35]} Rb2 {[%emt 0:00:31]} 44. d6 {[%emt 0:10:57]} Rb6 {[%emt 0:00:24]} 45. Rf6 {[%emt 0:01:07]} Rxd6 {[%emt 0:03:00]} 46. Nf8+ {[%emt 0:00:05]} Kg7 {[%emt 0:00:06]} 47. Rxd6 {[%emt 0:00:04]} Kxf8 {[%emt 0:00:03]} 48. Rxg6 {[%emt 0:00:06]} Kf7 {[%emt 0:00:07]} 1/2-1/2

[Event "EYCC Open-U18 2019"]
[Site "Bratislava"]
[Date "2019.08.05"]
[Round "4.32"]
[White "Stevanic, David"]
[Black "Johannsson, Birkir Isak"]
[Result "1-0"]
[ECO "B90"]
[WhiteElo "2306"]
[BlackElo "1988"]
[Annotator "NA"]
[PlyCount "65"]
[EventDate "2019.08.02"]
[EventType "swiss"]
[EventCountry "SVK"]
[SourceTitle "playchess.com"]
[Source "ChessBase"]
[SourceQuality "1"]
[TimeControl "40/5400+30:1800+30"]

1. e4 {[%emt 0:00:00]} c5 {[%emt 0:00:00]} 2. Nf3 {[%emt 0:00:00]} d6 {[%emt 0:00:00]} 3. d4 {[%emt 0:00:00]} cxd4 {[%emt 0:00:02]} 4. Nxd4 {[%emt 0:00:00]} Nf6 {[%emt 0:00:05]} 5. Nc3 {[%emt 0:00:00]} a6 {[%emt 0:00:02]} 6. h3 {[%emt 0:00:09]} e6 {[%emt 0:01:27]} 7. g4 {[%emt 0:00:06]} h6 {[%emt 0:00:03]} 8. Bg2 {[%emt 0:00:05]} g5 {[%emt 0:00:05]} 9. b3 {[%emt 0:00:28]} Nbd7 {[%emt 0:01:16]} 10. Bb2 {[%emt 0:00:10]} Ne5 {[%emt 0:00:03]} 11. Qd2 {[%emt 0:00:08]} b5 {[%emt 0:00:01]} 12. f4 {[%emt 0:08:15]} gxf4 {[%emt 0:02:10]} 13. O-O-O {[%emt 0:01:39]} Bb7 {[%emt 0:13:00]} 14. Qxf4 {[%emt 0:00:34]} Nfd7 {[%emt 0:02:02]} 15. Kb1 {[%emt 0:01:41]} Qc7 {[%emt 0:03:51]} 16. Nce2 {[%emt 0:04:43]} O-O-O {[%emt 0:02:34]} 17. Ng3 {[%emt 0:02:18]} Be7 {[%emt 0:02:45]} 18. Nf3 {[%emt 0:00:53]} Rh7 {[%emt 0:00:49]} 19. Rhf1 {[%emt 0:14:06]} Kb8 {[%emt 0:03:46]} 20. Qd2 {[%emt 0:06:35]} Nc5 {[%emt 0:13:07]} 21. Bc3 {[%emt 0:16:29]} Rc8 {[%emt 0:12:04]} 22. Ba5 {[%emt 0:01:44]} Qc6 {[%emt 0:00:42]} 23. Nd4 {[%emt 0:00:45]} Qe8 {[%emt 0:00:14]} 24. Qe2 {[%emt 0:01:44]} Ncd7 {[%emt 0:07:23]} 25. Nh5 {[%emt 0:02:09]} Bd8 {[%emt 0:01:16]} 26. Bb4 {[%emt 0:01:26]} Bc7 {[%emt 0:00:37]} 27. Nf3 {[%emt 0:05:48]} Qe7 {[%emt 0:02:32]} 28. Qd2 {[%emt 0:01:05]} Nc5 {[%emt 0:00:48]} 29. Nxe5 {[%emt 0:00:35]} dxe5 {[%emt 0:00:05]} 30. Nf6 {[%emt 0:00:44]} Rd8 {[%emt 0:02:18]} 31. Bxc5 {[%emt 0:01:12]} Qxc5 {[%emt 0:01:33]} 32. Qxd8+ {[%emt 0:00:18]} Bxd8 {[%emt 0:00:15]} 33. Nd7+ {[%emt 0:00:05]} 1-0

[Event "EYCC Open-U18 2019"]
[Site "Bratislava"]
[Date "2019.08.05"]
[Round "4.34"]
[White "Joensson, Jacob"]
[Black "Zabolotnov, Evgeny"]
[Result "0-1"]
[ECO "D31"]
[WhiteElo "1981"]
[BlackElo "2284"]
[Annotator "NA"]
[PlyCount "104"]
[EventDate "2019.08.02"]
[EventType "swiss"]
[EventCountry "SVK"]
[SourceTitle "playchess.com"]
[Source "ChessBase"]
[SourceQuality "1"]
[TimeControl "40/5400+30:1800+30"]

1. d4 {[%emt 0:00:00]} d5 {[%emt 0:00:00]} 2. c4 {[%emt 0:00:00]} e6 {[%emt 0:00:00]} 3. Nc3 {[%emt 0:00:00]} Bb4 {[%emt 0:00:00]} 4. Nf3 {[%emt 0:00:29]} dxc4 {[%emt 0:00:00]} 5. e4 {[%emt 0:01:17]} b5 {[%emt 0:00:00]} 6. a4 {[%emt 0:07:11]} c6 {[%emt 0:00:13]} 7. Be2 {[%emt 0:13:26]} Bb7 {[%emt 0:06:12]} 8. O-O {[%emt 0:01:49]} a6 {[%emt 0:01:00]} 9. Ne5 {[%emt 0:13:34]} Nd7 {[%emt 0:06:01]} 10. f4 {[%emt 0:04:19]} Ngf6 {[%emt 0:02:12]} 11. Bf3 {[%emt 0:14:37]} Nxe5 {[%emt 0:13:20]} 12. fxe5 {[%emt 0:01:57]} Nd7 {[%emt 0:00:01]} 13. Bh5 {[%emt 0:11:25]} g6 {[%emt 0:02:03]} 14. Qf3 {[%emt 0:00:48]} Qe7 {[%emt 0:02:18]} 15. Bg4 {[%emt 0:02:52]} c5 {[%emt 0:17:03]} 16. Bg5 {[%emt 0:15:28]} Qxg5 {[%emt 0:03:07]} 17. Qxf7+ {[%emt 0:00:07]} Kd8 {[%emt 0:00:03]} 18. Qxe6 {[%emt 0:00:12]} Qe7 {[%emt 0:01:59]} 19. Rf7 {[%emt 0:00:17]} Qxe6 {[%emt 0:00:28]} 20. Bxe6 {[%emt 0:00:06]} Nf8 {[%emt 0:08:13]} 21. Rxb7 {[%emt 0:04:37]} Nxe6 {[%emt 0:00:55]} 22. d5 {[%emt 0:01:11]} Kc8 {[%emt 0:07:59]} 23. Re7 {[%emt 0:01:30]} Nd4 {[%emt 0:05:10]} 24. axb5 {[%emt 0:01:13]} Bxc3 {[%emt 0:01:54]} 25. Rxa6 {[%emt 0:00:51]} Rxa6 {[%emt 0:16:03]} 26. bxa6 {[%emt 0:00:05]} Rf8 {[%emt 0:00:02]} 27. h4 {[%emt 0:00:07]} Ne2+ {[%emt 0:00:22]} 28. Kh2 {[%emt 0:02:05]} Bxe5+ {[%emt 0:02:09]} 29. Rxe5 {[%emt 0:00:08]} Kd7 {[%emt 0:00:09]} 30. h5 {[%emt 0:01:20]} c3 {[%emt 0:01:58]} 31. bxc3 {[%emt 0:00:37]} Nxc3 {[%emt 0:00:01]} 32. hxg6 {[%emt 0:00:23]} hxg6 {[%emt 0:00:19]} 33. Re6 {[%emt 0:00:17]} Rc8 {[%emt 0:04:02]} 34. e5 {[%emt 0:00:46]} Nxd5 {[%emt 0:00:59]} 35. Rd6+ {[%emt 0:00:06]} Ke7 {[%emt 0:00:09]} 36. Rxd5 {[%emt 0:00:06]} Ke6 {[%emt 0:00:18]} 37. Rd6+ {[%emt 0:00:12]} Kxe5 {[%emt 0:00:09]} 38. Rxg6 {[%emt 0:00:10]} c4 {[%emt 0:00:42]} 39. a7 {[%emt 0:00:17]} Kd4 {[%emt 0:00:47]} 40. Ra6 {[%emt 0:00:00]} Ra8 {[%emt 0:00:00]} 41. Kg3 {[%emt 0:01:43]} c3 {[%emt 0:01:16]} 42. Kf4 {[%emt 0:00:20]} c2 {[%emt 0:01:10]} 43. Rc6 {[%emt 0:00:34]} Kd3 {[%emt 0:00:05]} 44. g4 {[%emt 0:00:35]} Rxa7 {[%emt 0:00:04]} 45. Kf5 {[%emt 0:00:08]} Ra5+ {[%emt 0:06:59]} 46. Kf6 {[%emt 0:00:07]} Ra6 {[%emt 0:00:27]} 47. Rxa6 {[%emt 0:00:29]} c1=Q {[%emt 0:00:01]} 48. Re6 {[%emt 0:02:44]} Qf4+ {[%emt 0:00:16]} 49. Ke7 {[%emt 0:00:30]} Qxg4 {[%emt 0:00:07]} 50. Rd6+ {[%emt 0:00:26]} Ke4 {[%emt 0:00:14]} 51. Re6+ {[%emt 0:00:54]} Kd5 {[%emt 0:00:20]} 52. Ra6 {[%emt 0:00:15]} Qe2+ {[%emt 0:00:18]} 0-1

[Event "EYCC Open-U18 2019"]
[Site "Bratislava"]
[Date "2019.08.05"]
[Round "4.36"]
[White "Pobor, Danilo"]
[Black "Heimisson, Hilmir Freyr"]
[Result "0-1"]
[ECO "A33"]
[WhiteElo "1996"]
[BlackElo "2279"]
[Annotator "NA"]
[PlyCount "66"]
[EventDate "2019.08.02"]
[EventType "swiss"]
[EventCountry "SVK"]
[SourceTitle "playchess.com"]
[Source "ChessBase"]
[SourceQuality "1"]
[TimeControl "40/5400+30:1800+30"]

1. d4 {[%emt 0:00:00]} e6 {[%emt 0:00:00]} 2. Nf3 {[%emt 0:00:00]} c5 {[%emt 0:00:00]} 3. c4 {[%emt 0:00:50]} cxd4 {[%emt 0:00:18]} 4. Nxd4 {[%emt 0:00:05]} Nf6 {[%emt 0:00:05]} 5. Nc3 {[%emt 0:00:08]} Nc6 {[%emt 0:00:09]} 6. e4 {[%emt 0:00:49]} Bb4 {[%emt 0:00:19]} 7. f3 {[%emt 0:05:19]} d5 {[%emt 0:29:27]} 8. exd5 {[%emt 0:27:20]} exd5 {[%emt 0:00:53]} 9. cxd5 {[%emt 0:06:14]} Nxd5 {[%emt 0:08:27]} 10. Nxc6 {[%emt 0:02:16]} bxc6 {[%emt 0:01:03]} 11. Bd2 {[%emt 0:01:16]} O-O {[%emt 0:09:28]} 12. Be2 {[%emt 0:12:24]} Bc5 {[%emt 0:15:55]} 13. Ne4 {[%emt 0:02:01]} Bb6 {[%emt 0:00:14]} 14. Qc2 {[%emt 0:00:36]} Ne3 {[%emt 0:06:00]} 15. Bxe3 {[%emt 0:05:48]} Bxe3 {[%emt 0:00:07]} 16. Rd1 {[%emt 0:01:13]} Qh4+ {[%emt 0:04:32]} 17. g3 {[%emt 0:03:14]} Qh3 {[%emt 0:00:42]} 18. Bc4 {[%emt 0:02:47]} Bf5 {[%emt 0:05:55]} 19. Qe2 {[%emt 0:02:02]} Bxe4 {[%emt 0:03:23]} 20. Qxe3 {[%emt 0:00:25]} Bc2 {[%emt 0:00:21]} 21. Bf1 {[%emt 0:03:10]} Qh5 {[%emt 0:00:32]} 22. Rd7 {[%emt 0:01:02]} Rae8 {[%emt 0:01:08]} 23. Re7 {[%emt 0:00:46]} Rxe7 {[%emt 0:00:07]} 24. Qxe7 {[%emt 0:00:08]} Qxf3 {[%emt 0:00:11]} 25. Rg1 {[%emt 0:00:15]} Qd1+ {[%emt 0:00:41]} 26. Kf2 {[%emt 0:00:08]} Qd4+ {[%emt 0:00:07]} 27. Qe3 {[%emt 0:00:30]} Qxb2 {[%emt 0:00:18]} 28. Be2 {[%emt 0:00:51]} Qxa2 {[%emt 0:01:44]} 29. Rc1 {[%emt 0:00:17]} Ba4 {[%emt 0:04:07]} 30. Qxa7 {[%emt 0:00:22]} Re8 {[%emt 0:00:32]} 31. Re1 {[%emt 0:00:02]} Qc2 {[%emt 0:01:38]} 32. Kg1 {[%emt 0:03:35]} h6 {[%emt 0:01:55]} 33. Qd7 {[%emt 0:01:06]} Qe4 {[%emt 0:01:36]} 0-1

[Event "EYCC Open-U18 2019"]
[Site "Bratislava"]
[Date "2019.08.05"]
[Round "4.37"]
[White "Castillo Dalmau, Albert"]
[Black "Sousa, Hugo Carneiro"]
[Result "1/2-1/2"]
[ECO "E63"]
[WhiteElo "2252"]
[BlackElo "2130"]
[Annotator "NA"]
[PlyCount "95"]
[EventDate "2019.08.02"]
[EventType "swiss"]
[EventCountry "SVK"]
[SourceTitle "playchess.com"]
[Source "ChessBase"]
[SourceQuality "1"]
[TimeControl "40/5400+30:1800+30"]

1. Nf3 {[%emt 0:00:04]} Nf6 {[%emt 0:00:00]} 2. g3 {[%emt 0:00:16]} g6 {[%emt 0:00:00]} 3. Bg2 {[%emt 0:00:07]} Bg7 {[%emt 0:00:00]} 4. c4 {[%emt 0:00:04]} O-O {[%emt 0:00:09]} 5. O-O {[%emt 0:00:06]} d6 {[%emt 0:00:06]} 6. d4 {[%emt 0:00:48]} Nc6 {[%emt 0:00:10]} 7. Nc3 {[%emt 0:00:26]} a6 {[%emt 0:00:19]} 8. d5 {[%emt 0:00:49]} Na5 {[%emt 0:01:04]} 9. b3 {[%emt 0:00:07]} c5 {[%emt 0:08:27]} 10. dxc6 {[%emt 0:00:18]} Ne4 {[%emt 0:07:21]} 11. c7 {[%emt 0:05:13]} Qxc7 {[%emt 0:03:21]} 12. Nd5 {[%emt 0:00:50]} Qd8 {[%emt 0:01:45]} 13. Nd4 {[%emt 0:31:31]} Nc5 {[%emt 0:05:50]} 14. Bb2 {[%emt 0:03:40]} Ne6 {[%emt 0:06:38]} 15. Nxe6 {[%emt 0:09:12]} Bxe6 {[%emt 0:01:00]} 16. Bxg7 {[%emt 0:00:02]} Kxg7 {[%emt 0:00:31]} 17. b4 {[%emt 0:06:25]} Nc6 {[%emt 0:04:38]} 18. b5 {[%emt 0:00:05]} Ne5 {[%emt 0:05:04]} 19. Qd4 {[%emt 0:00:18]} Kg8 {[%emt 0:01:06]} 20. Nb6 {[%emt 0:13:41]} Rb8 {[%emt 0:04:15]} 21. a4 {[%emt 0:01:47]} a5 {[%emt 0:02:18]} 22. Rfc1 {[%emt 0:01:25]} Nd7 {[%emt 0:03:32]} 23. Nxd7 {[%emt 0:00:05]} Qxd7 {[%emt 0:00:07]} 24. c5 {[%emt 0:00:14]} dxc5 {[%emt 0:01:53]} 25. Qxd7 {[%emt 0:02:09]} Bxd7 {[%emt 0:00:07]} 26. Rxc5 {[%emt 0:00:04]} Rfc8 {[%emt 0:02:57]} 27. Rxc8+ {[%emt 0:00:23]} Bxc8 {[%emt 0:00:11]} 28. Rc1 {[%emt 0:01:21]} b6 {[%emt 0:01:53]} 29. Rc7 {[%emt 0:01:48]} Kf8 {[%emt 0:00:38]} 30. Bd5 {[%emt 0:00:37]} Bf5 {[%emt 0:05:15]} 31. e4 {[%emt 0:04:15]} Bg4 {[%emt 0:02:41]} 32. Kg2 {[%emt 0:05:33]} Bd1 {[%emt 0:01:24]} 33. Bc6 {[%emt 0:00:23]} Bxa4 {[%emt 0:01:52]} 34. Kf3 {[%emt 0:00:23]} Bb3 {[%emt 0:03:20]} 35. Ra7 {[%emt 0:00:28]} f6 {[%emt 0:02:46]} 36. Ke3 {[%emt 0:00:23]} Kf7 {[%emt 0:01:51]} 37. Kd4 {[%emt 0:00:28]} Ke6 {[%emt 0:03:06]} 38. f4 {[%emt 0:02:08]} h5 {[%emt 0:05:17]} 39. Kc3 {[%emt 0:02:55]} Bd1 {[%emt 0:02:03]} 40. Kd4 {[%emt 0:00:00]} Bb3 {[%emt 0:00:00]} 41. Kc3 {[%emt 0:00:34]} a4 {[%emt 0:28:23]} 42. Kd4 {[%emt 0:03:23]} Rd8+ {[%emt 0:00:40]} 43. Kc3 {[%emt 0:00:40]} Kd6 {[%emt 0:02:34]} 44. Kb4 {[%emt 0:00:28]} Rb8 {[%emt 0:01:29]} 45. Rd7+ {[%emt 0:00:34]} Ke6 {[%emt 0:00:13]} 46. Ra7 {[%emt 0:00:02]} Kd6 {[%emt 0:04:48]} 47. Rd7+ {[%emt 0:00:06]} Ke6 {[%emt 0:00:08]} 48. Ra7 {[%emt 0:00:03] Kd5} 1/2-1/2

[Event "EYCC Open-U18 2019"]
[Site "Bratislava"]
[Date "2019.08.05"]
[Round "4.38"]
[White "Gray, Euan"]
[Black "Kizatbay, Abyl"]
[Result "1-0"]
[ECO "A58"]
[WhiteElo "2004"]
[BlackElo "2216"]
[Annotator "NA"]
[PlyCount "105"]
[EventDate "2019.08.02"]
[EventType "swiss"]
[EventCountry "SVK"]
[SourceTitle "playchess.com"]
[Source "ChessBase"]
[SourceQuality "1"]
[TimeControl "40/5400+30:1800+30"]

1. d4 {[%emt 0:00:00]} Nf6 {[%emt 0:00:00]} 2. c4 {[%emt 0:00:00]} c5 {[%emt 0:00:00]} 3. d5 {[%emt 0:00:00]} b5 {[%emt 0:00:01]} 4. cxb5 {[%emt 0:00:00]} a6 {[%emt 0:00:05]} 5. bxa6 {[%emt 0:00:00]} g6 {[%emt 0:00:13]} 6. Nc3 {[%emt 0:00:47]} Bg7 {[%emt 0:00:33]} 7. Nf3 {[%emt 0:01:08]} O-O {[%emt 0:04:23]} 8. a7 {[%emt 0:02:43]} Rxa7 {[%emt 0:00:35]} 9. e4 {[%emt 0:00:06]} e6 {[%emt 0:00:39]} 10. Be2 {[%emt 0:00:27]} exd5 {[%emt 0:01:14]} 11. exd5 {[%emt 0:00:20]} d6 {[%emt 0:00:06]} 12. O-O {[%emt 0:01:43]} Na6 13. Nd2 Bf5 {[%emt 0:14:26]} 14. Nc4 {[%emt 0:18:18]} Nb4 {[%emt 0:11:53]} 15. Bf4 {[%emt 0:15:37]} Ne8 {[%emt 0:15:32]} 16. Ne3 {[%emt 0:09:46]} Bc8 {[%emt 0:11:05]} 17. a3 {[%emt 0:03:26]} Na6 {[%emt 0:00:54]} 18. Nc4 {[%emt 0:06:20]} g5 {[%emt 0:02:31]} 19. Be3 {[%emt 0:01:59]} f5 {[%emt 0:00:55]} 20. f4 {[%emt 0:03:36]} g4 {[%emt 0:04:24]} 21. Qd2 {[%emt 0:04:29]} Re7 {[%emt 0:01:52]} 22. Rfe1 {[%emt 0:02:24]} Bf6 {[%emt 0:06:08]} 23. Bf2 {[%emt 0:04:17]} h5 {[%emt 0:00:27]} 24. Bd3 {[%emt 0:02:13]} Rh7 {[%emt 0:01:10]} 25. Ne3 {[%emt 0:03:57]} Ng7 {[%emt 0:00:33]} 26. Qc2 {[%emt 0:00:56]} Kh8 {[%emt 0:01:21]} 27. g3 {[%emt 0:01:52]} h4 {[%emt 0:00:52]} 28. Kg2 {[%emt 0:03:43]} Nc7 {[%emt 0:01:36]} 29. b4 {[%emt 0:01:18]} Bb7 {[%emt 0:03:15]} 30. Bc4 {[%emt 0:03:24]} Nce6 {[%emt 0:00:40]} 31. Qd3 {[%emt 0:01:38]} Nh5 {[%emt 0:04:58]} 32. Ne2 {[%emt 0:03:35]} Bxa1 {[%emt 0:01:21]} 33. Rxa1 {[%emt 0:00:01]} Qf6 {[%emt 0:00:20]} 34. Rb1 {[%emt 0:00:53]} hxg3 {[%emt 0:01:59]} 35. hxg3 {[%emt 0:00:12]} Qh6 {[%emt 0:01:52]} 36. Nxf5 {[%emt 0:02:34]} Rxf5 {[%emt 0:08:54]} 37. Qxf5 {[%emt 0:02:33]} Nhxf4+ {[%emt 0:00:07]} 38. Kf1 {[%emt 0:00:42]} Qh1+ {[%emt 0:00:29]} 39. Ng1 {[%emt 0:01:14]} Rh2 {[%emt 0:00:39]} 40. Rb2 {[%emt 0:00:00]} Bxd5 {[%emt 0:00:00]} 41. Bxd5 {[%emt 0:08:34]} Qxd5 {[%emt 0:09:47]} 42. Qxd5 {[%emt 0:03:07]} Nxd5 {[%emt 0:02:26]} 43. Bd4+ {[%emt 0:01:15]} cxd4 {[%emt 0:00:16]} 44. Rxh2+ {[%emt 0:00:10]} Kg7 {[%emt 0:00:04]} 45. Ke2 {[%emt 0:01:34]} Ne3 {[%emt 0:03:26]} 46. Kd3 {[%emt 0:00:20]} Nf5 {[%emt 0:00:11]} 47. Ne2 {[%emt 0:00:45]} Ng5 {[%emt 0:00:08]} 48. Rf2 {[%emt 0:02:28]} Kg6 {[%emt 0:00:43]} 49. Rf4 {[%emt 0:02:22]} Nh3 {[%emt 0:00:41]} 50. Rxg4+ {[%emt 0:01:58]} Kf7 {[%emt 0:02:21]} 51. Kd2 {[%emt 0:00:26]} d3 {[%emt 0:00:14]} 52. Nc1 {[%emt 0:00:19]} Nf2 {[%emt 0:00:32]} 53. Rf4 {[%emt 0:00:10]} 1-0